{"text_format":"1","workbook":"xlsx","n_sheets":2,"sheets":["tarif fournisseur","notre tarif"],"not_rendered":{"charts":0,"images":0,"macros":1,"external_links":0,"defined_names":0,"comments":0,"pivot_tables":0},"unopened":[],"bounds":{"document_bytes":16777216,"sheet_cells":100000,"rows_first":2000,"rows_last":500,"rows_between":2000,"halvings":0,"cell_chars":16384,"cell_head_chars":4096},"cells_cut":0,"cells_raw":0,"read":"whole","date_system":"1900"}

{"sheet":"tarif fournisseur","index":0,"n_rows":7,"n_cols":7,"rows_kept":7,"cut":false,"hidden":false,"merged":[]}
["Millésime","Vin","Appellation","Classement","Qté","Format","Prix"]
[2016,"Barde Haut","Saint-emilion grand cru","Grand cru classé",204,"Bouteille",10]
[2015,"Barde Haut","Saint-emilion grand cru","Grand cru classé",">1200","Bouteille",10]
[2014,"Barde Haut","Saint-emilion grand cru","Grand cru classé",12,"Bouteille",10]
[2013,"Barde Haut","Saint-emilion grand cru","Grand cru classé",696,"Bouteille",10]
[2012,"Barde Haut","Saint-emilion grand cru","Grand cru classé",88,"Magnum",10]
[2012,"Barde Haut","Saint-emilion grand cru","Grand cru classé",5,"Double-Magnum",10]

{"sheet":"notre tarif","index":1,"n_rows":12,"n_cols":11,"rows_kept":12,"cut":false,"hidden":false,"merged":[]}
["Produit - ID","marque","nom","prix","frais de port","en stock","stock","Condit.","Produit","Millésime","Contenance"]
["X1Bardehaut2012150","Château Barde Haut","X1 Château Barde Haut 2012 150 cl AOC Saint-Emilion Grand Cru Classé Rouge Vin Rouge",20,16.5,"En stock",88,{"$f":"conditionnement(Tableau2[[#This Row],[Produit - ID]])","v":1},{"$f":"appellation(Tableau2[[#This Row],[Produit - ID]])","v":"Bardehaut"},{"$f":"millesime(Tableau2[[#This Row],[Produit - ID]])","v":2012},{"$f":"contenance(Tableau2[[#This Row],[Produit - ID]])","v":150}]
["X1Bardehaut2012300","Château Barde Haut","X1 Château Barde Haut 2012 300 cl AOC Saint-Emilion Grand Cru Classé Rouge Vin Rouge",20,20,"En stock",5,{"$f":"conditionnement(Tableau2[[#This Row],[Produit - ID]])","v":1},{"$f":"appellation(Tableau2[[#This Row],[Produit - ID]])","v":"Bardehaut"},{"$f":"millesime(Tableau2[[#This Row],[Produit - ID]])","v":2012},{"$f":"contenance(Tableau2[[#This Row],[Produit - ID]])","v":300}]
["X3Bardehaut201375","Château Barde-Haut","X3 Barde-Haut 2013 Rouge 75 cl AOC Saint-Émilion Grand Cru Vin Rouge",20,19,"En stock",232,{"$f":"conditionnement(Tableau2[[#This Row],[Produit - ID]])","v":3},{"$f":"appellation(Tableau2[[#This Row],[Produit - ID]])","v":"Bardehaut"},{"$f":"millesime(Tableau2[[#This Row],[Produit - ID]])","v":2013},{"$f":"contenance(Tableau2[[#This Row],[Produit - ID]])","v":75}]
["X6Bardehaut201375","Château Barde-Haut","X6 Barde-Haut 2013 Rouge 75 cl AOC Saint-Émilion Grand Cru Vin Rouge",20,9.9,"En stock",116,{"$f":"conditionnement(Tableau2[[#This Row],[Produit - ID]])","v":6},{"$f":"appellation(Tableau2[[#This Row],[Produit - ID]])","v":"Bardehaut"},{"$f":"millesime(Tableau2[[#This Row],[Produit - ID]])","v":2013},{"$f":"contenance(Tableau2[[#This Row],[Produit - ID]])","v":75}]
["X12Bardehaut201375","Château Barde-Haut","X12 Barde-Haut 2013 Rouge 75 cl AOC Saint-Émilion Grand Cru Vin Rouge",20,9.9,"En stock",58,{"$f":"conditionnement(Tableau2[[#This Row],[Produit - ID]])","v":12},{"$f":"appellation(Tableau2[[#This Row],[Produit - ID]])","v":"Bardehaut"},{"$f":"millesime(Tableau2[[#This Row],[Produit - ID]])","v":2013},{"$f":"contenance(Tableau2[[#This Row],[Produit - ID]])","v":75}]
["X6Bardehaut201475","Château Barde Haut","X6 Château Barde Haut 2014 75 cl AOC Saint-Emilion Grand Cru Classé Rouge Vin Rouge",20,9.9,"En stock",2,{"$f":"conditionnement(Tableau2[[#This Row],[Produit - ID]])","v":6},{"$f":"appellation(Tableau2[[#This Row],[Produit - ID]])","v":"Bardehaut"},{"$f":"millesime(Tableau2[[#This Row],[Produit - ID]])","v":2014},{"$f":"contenance(Tableau2[[#This Row],[Produit - ID]])","v":75}]
["X12Bardehaut201475","Château Barde Haut","X12 Château Barde Haut 2014 75 cl AOC Saint-Emilion Grand Cru Classé Rouge Vin Rouge",20,9.9,"En stock",1,{"$f":"conditionnement(Tableau2[[#This Row],[Produit - ID]])","v":12},{"$f":"appellation(Tableau2[[#This Row],[Produit - ID]])","v":"Bardehaut"},{"$f":"millesime(Tableau2[[#This Row],[Produit - ID]])","v":2014},{"$f":"contenance(Tableau2[[#This Row],[Produit - ID]])","v":75}]
["X6Bardehaut201575","Château Barde Haut","X6 Château Barde Haut 2015 75 cl AOC Saint-Emilion Grand Cru Classé Rouge Vin Rouge",20,9.9,"En stock",200,{"$f":"conditionnement(Tableau2[[#This Row],[Produit - ID]])","v":6},{"$f":"appellation(Tableau2[[#This Row],[Produit - ID]])","v":"Bardehaut"},{"$f":"millesime(Tableau2[[#This Row],[Produit - ID]])","v":2015},{"$f":"contenance(Tableau2[[#This Row],[Produit - ID]])","v":75}]
["X12Bardehaut201575","Château Barde Haut","X12 Château Barde Haut 2015 75 cl AOC Saint-Emilion Grand Cru Classé Rouge Vin Rouge",20,9.9,"En stock",100,{"$f":"conditionnement(Tableau2[[#This Row],[Produit - ID]])","v":12},{"$f":"appellation(Tableau2[[#This Row],[Produit - ID]])","v":"Bardehaut"},{"$f":"millesime(Tableau2[[#This Row],[Produit - ID]])","v":2015},{"$f":"contenance(Tableau2[[#This Row],[Produit - ID]])","v":75}]
["X18Bardehaut201575","Château Barde Haut","X18 Château Barde Haut 2015 75 cl AOC Saint-Emilion Grand Cru Classé Rouge Vin Rouge",20,10,"En stock",66,{"$f":"conditionnement(Tableau2[[#This Row],[Produit - ID]])","v":18},{"$f":"appellation(Tableau2[[#This Row],[Produit - ID]])","v":"Bardehaut"},{"$f":"millesime(Tableau2[[#This Row],[Produit - ID]])","v":2015},{"$f":"contenance(Tableau2[[#This Row],[Produit - ID]])","v":75}]
["X24Bardehaut201575","Château Barde Haut","X24 Château Barde Haut 2015 75 cl AOC Saint-Emilion Grand Cru Classé Rouge Vin Rouge",20,10,"En stock",50,{"$f":"conditionnement(Tableau2[[#This Row],[Produit - ID]])","v":24},{"$f":"appellation(Tableau2[[#This Row],[Produit - ID]])","v":"Bardehaut"},{"$f":"millesime(Tableau2[[#This Row],[Produit - ID]])","v":2015},{"$f":"contenance(Tableau2[[#This Row],[Produit - ID]])","v":75}]